[Event "VIII Iberoamericano Mexico 2022"]
[Site "Mexico City"]
[Date "2022.02.19"]
[Round "9.35"]
[White "Pla, Silvio"]
[Black "Macias Zamora, Jose Armando"]
[Result "1-0"]
[ECO "D00"]
[WhiteElo "2113"]
[BlackElo "1488"]
[Annotator "NA"]
[PlyCount "65"]
[EventDate "2022.02.12"]
[EventType "swiss"]
[EventCountry "MEX"]
[SourceTitle "playchess.com"]
[Source "ChessBase"]
[SourceQuality "1"]
[TimeControl "5400+30"]

1. d4 {[%emt 0:00:10]} d5 {[%emt 0:00:07]} 2. Bf4 {[%emt 0:00:36]} c5 {[%emt 0:00:10]} 3. e3 {[%emt 0:00:11]} Nc6 {[%emt 0:00:10]} 4. c3 {[%emt 0:00:40]} Nf6 {[%emt 0:01:07]} 5. Nd2 {[%emt 0:00:09]} Bf5 {[%emt 0:01:22]} 6. Qb3 {[%emt 0:07:01]} Qb6 {[%emt 0:01:23]} 7. dxc5 {[%emt 0:00:11]} Qxb3 {[%emt 0:00:43]} 8. Nxb3 {[%emt 0:00:18]} e5 {[%emt 0:00:33]} 9. Bg3 {[%emt 0:00:43]} Ne4 {[%emt 0:01:08]} 10. Bb5 {[%emt 0:00:52]} f6 {[%emt 0:04:30]} 11. O-O-O {[%emt 0:34:24]} O-O-O {[%emt 0:06:14]} 12. Bd3 {[%emt 0:03:32]} Nxg3 {[%emt 0:01:08]} 13. hxg3 {[%emt 0:00:04]} Bxd3 {[%emt 0:00:26]} 14. Rxd3 {[%emt 0:00:02]} e4 {[%emt 0:00:13]} 15. Rd2 {[%emt 0:02:49]} Ne5 {[%emt 0:01:49]} 16. Nh3 {[%emt 0:05:36]} g5 {[%emt 0:05:10]} 17. Rhd1 {[%emt 0:00:06]} Be7 {[%emt 0:21:15]} 18. Kb1 {[%emt 0:00:29]} Nd3 {[%emt 0:01:29]} 19. Nc1 {[%emt 0:00:59]} Nxc5 {[%emt 0:03:19]} 20. Rxd5 {[%emt 0:00:22]} Rxd5 {[%emt 0:00:17]} 21. Rxd5 {[%emt 0:00:01]} Rd8 {[%emt 0:00:13]} 22. Rxd8+ {[%emt 0:00:38]} Bxd8 {[%emt 0:00:42]} 23. Kc2 {[%emt 0:00:19]} Kd7 {[%emt 0:00:40]} 24. Ng1 {[%emt 0:07:00]} f5 {[%emt 0:02:10]} 25. Nge2 {[%emt 0:00:08]} Ke6 {[%emt 0:01:21]} 26. Nd4+ {[%emt 0:05:55]} Ke5 {[%emt 0:01:19]} 27. b4 {[%emt 0:01:39]} Nd7 {[%emt 0:00:47]} 28. f4+ {[%emt 0:08:20]} exf3 {[%emt 0:00:21]} 29. gxf3 {[%emt 0:00:01]} f4 {[%emt 0:02:22]} 30. Nd3+ {[%emt 0:00:27]} Kf6 {[%emt 0:00:48]} 31. exf4 {[%emt 0:00:11]} Bc7 {[%emt 0:01:32]} 32. fxg5+ {[%emt 0:00:21]} Kxg5 {[%emt 0:00:01]} 33. Ne6+ {[%emt 0:00:01]} 1-0

[Event "VIII Iberoamericano Mexico 2022"]
[Site "Mexico City"]
[Date "2022.02.19"]
[Round "9.36"]
[White "Davalos Prieto, Abel Justo"]
[Black "Jorajuria Mendoza, Zuben Algenubi"]
[Result "1/2-1/2"]
[ECO "D00"]
[WhiteElo "2103"]
[BlackElo "1582"]
[Annotator "NA"]
[PlyCount "67"]
[EventDate "2022.02.12"]
[EventType "swiss"]
[EventCountry "MEX"]
[SourceTitle "playchess.com"]
[Source "ChessBase"]
[SourceQuality "1"]
[TimeControl "5400+30"]

1. d4 {[%emt 0:00:09]} d5 {[%emt 0:00:08]} 2. Bf4 {[%emt 0:00:14]} Bf5 {[%emt 0:00:31]} 3. Nc3 {[%emt 0:00:19]} Nf6 {[%emt 0:00:15]} 4. f3 {[%emt 0:00:27]} e6 {[%emt 0:01:12]} 5. g4 {[%emt 0:02:27]} Bg6 {[%emt 0:00:13]} 6. h4 {[%emt 0:00:10]} h6 {[%emt 0:00:20]} 7. e3 {[%emt 0:00:22]} Be7 {[%emt 0:01:28]} 8. Bd3 {[%emt 0:05:24]} Bxd3 {[%emt 0:01:00]} 9. Qxd3 {[%emt 0:00:16]} Nfd7 {[%emt 0:00:11]} 10. O-O-O {[%emt 0:02:42]} Bxh4 {[%emt 0:00:33]} 11. Bxc7 {[%emt 0:00:32]} Qxc7 {[%emt 1:30:09]} 12. Rxh4 {[%emt 0:00:16]} Na6 {[%emt 1:29:40]} 13. a3 {[%emt 0:03:38]} O-O-O {[%emt 0:01:14]} 14. Nge2 {[%emt 0:01:36]} Kb8 {[%emt 0:01:27]} 15. f4 {[%emt 1:19:28]} Rc8 {[%emt 0:02:19]} 16. Rdh1 {[%emt 0:00:00]} Rhg8 {[%emt 0:01:20]} 17. Rg1 {[%emt 0:00:00]} Nb6 {[%emt 0:02:44]} 18. b3 {[%emt 0:00:00]} Qe7 {[%emt 0:00:35]} 19. Rhh1 {[%emt 0:00:00]} Qxa3+ {[%emt 0:00:15]} 20. Kd2 {[%emt 0:00:00]} Rc6 {[%emt 0:03:41]} 21. Ra1 {[%emt 0:00:00]} Qe7 {[%emt 0:01:49]} 22. Qb5 {[%emt 0:00:00]} Rgc8 {[%emt 0:02:14]} 23. Rhc1 {[%emt 0:00:00]} Qc7 {[%emt 0:02:11]} 24. Qa5 {[%emt 0:00:00]} Qd7 {[%emt 0:01:33]} 25. Nb5 {[%emt 0:00:00]} g6 {[%emt 0:03:15]} 26. c3 {[%emt 0:00:00]} f5 {[%emt 0:01:18]} 27. Rh1 {[%emt 0:00:00]} Qg7 {[%emt 0:01:37]} 28. Rag1 {[%emt 0:00:00]} Rh8 {[%emt 0:01:59]} 29. Nc1 {[%emt 0:00:00]} Qd7 {[%emt 0:01:35]} 30. Nd3 {[%emt 0:00:00]} Qd8 {[%emt 0:00:47]} 31. Ra1 {[%emt 0:00:00]} Nd7 {[%emt 1:06:19]} 32. Qxd8+ {[%emt 0:08:30]} Rxd8 {[%emt 0:00:10]} 33. Rxh6 {[%emt 0:00:00]} Rg8 {[%emt 0:00:52]} 34. Rg1 {[%emt 0:09:30]} 1/2-1/2

[Event "VIII Iberoamericano Mexico 2022"]
[Site "Mexico City"]
[Date "2022.02.19"]
[Round "9.37"]
[White "Zacarias, M Ruben D"]
[Black "Herrera Aruca, Jorge Frank"]
[Result "1-0"]
[ECO "C02"]
[WhiteElo "2174"]
[BlackElo "1964"]
[Annotator "NA"]
[PlyCount "63"]
[EventDate "2022.02.12"]
[EventType "swiss"]
[EventCountry "MEX"]
[SourceTitle "playchess.com"]
[Source "ChessBase"]
[SourceQuality "1"]
[TimeControl "5400+30"]

1. e4 {[%emt 0:00:03]} e6 {[%emt 0:00:07]} 2. d4 {[%emt 0:00:04]} d5 {[%emt 0:00:03]} 3. e5 {[%emt 0:00:04]} c5 {[%emt 0:00:06]} 4. c3 {[%emt 0:00:04]} Qb6 {[%emt 0:00:04]} 5. Nf3 {[%emt 0:00:05]} Nc6 {[%emt 0:00:04]} 6. a3 {[%emt 0:00:05]} c4 {[%emt 0:00:04]} 7. Nbd2 {[%emt 0:00:04]} Na5 {[%emt 0:00:05]} 8. g3 {[%emt 0:00:08]} Bd7 {[%emt 0:00:05]} 9. Bg2 {[%emt 0:00:06]} O-O-O {[%emt 0:00:12]} 10. O-O {[%emt 0:00:06]} f5 {[%emt 0:00:04]} 11. Ng5 Nh6 {[%emt 0:00:30]} 12. f4 Be7 {[%emt 0:00:30]} 13. Ndf3 Nb3 {[%emt 0:00:30]} 14. Rb1 Be8 {[%emt 0:00:30]} 15. Kh1 Nf7 {[%emt 0:00:30]} 16. Nxf7 Bxf7 {[%emt 0:00:30]} 17. Ng5 Be8 {[%emt 0:00:30]} 18. h4 h6 {[%emt 0:00:30]} 19. Nf3 Nxc1 {[%emt 0:00:30]} 20. Qxc1 Bh5 {[%emt 0:00:30]} 21. b3 cxb3 {[%emt 0:00:30]} 22. c4 Kb8 {[%emt 0:00:30]} 23. c5 Qb5 {[%emt 0:00:30]} 24. Qe3 g5 {[%emt 0:00:30]} 25. Rxb3 Qc6 {[%emt 0:00:30]} 26. Rfb1 Rd7 {[%emt 0:00:30]} 27. Bf1 Qc8 {[%emt 0:00:30]} 28. Ba6 gxh4 {[%emt 0:00:30]} 29. Qc3 Rc7 {[%emt 0:00:30]} 30. c6 Rxc6 {[%emt 0:00:30]} 31. Rxb7+ Ka8 {[%emt 0:00:30]} 32. Rb8+ 1-0

[Event "VIII Iberoamericano Mexico 2022"]
[Site "Mexico City"]
[Date "2022.02.19"]
[Round "9.38"]
[White "Alfaro, William"]
[Black "Santanna, Paulo"]
[Result "1/2-1/2"]
[ECO "B27"]
[WhiteElo "2143"]
[BlackElo "1928"]
[Annotator "NA"]
[PlyCount "33"]
[EventDate "2022.02.12"]
[EventType "swiss"]
[EventCountry "MEX"]
[SourceTitle "playchess.com"]
[Source "ChessBase"]
[SourceQuality "1"]
[TimeControl "5400+30"]

1. e4 {[%emt 0:10:37]} c5 {[%emt 0:00:06]} 2. d4 {[%emt 0:00:03]} cxd4 {[%emt 0:00:06]} 3. c3 {[%emt 0:00:04]} g6 {[%emt 0:00:12]} 4. cxd4 {[%emt 0:00:07]} d5 {[%emt 0:00:06]} 5. e5 {[%emt 0:02:02]} Bg7 {[%emt 0:00:20]} 6. Nf3 {[%emt 0:00:13]} Bg4 {[%emt 0:00:12]} 7. Bb5+ {[%emt 0:01:32]} Nd7 {[%emt 0:00:24]} 8. Nc3 {[%emt 0:08:37]} e6 {[%emt 0:03:49]} 9. Be2 {[%emt 0:03:24]} a6 {[%emt 0:03:53]} 10. Bg5 {[%emt 0:03:49]} Ne7 {[%emt 0:03:15]} 11. Qb3 {[%emt 0:05:39]} Rb8 {[%emt 0:10:28]} 12. Qa3 {[%emt 0:09:27]} Bxf3 {[%emt 0:01:14]} 13. Bxf3 {[%emt 0:00:06]} h6 {[%emt 0:00:14]} 14. Bxe7 {[%emt 0:01:48]} Qxe7 {[%emt 0:00:03]} 15. Qa5 {[%emt 0:12:14]} O-O {[%emt 0:00:31]} 16. O-O {[%emt 0:00:01]} Qd8 {[%emt 0:02:40]} 17. Qxd8 {[%emt 0:02:40]} 1/2-1/2

[Event "VIII Iberoamericano Mexico 2022"]
[Site "Mexico City"]
[Date "2022.02.19"]
[Round "9.39"]
[White "Flores Irurso, Paul Josue"]
[Black "Vega Garcia, Jorge Arturo"]
[Result "0-1"]
[ECO "C53"]
[WhiteElo "1912"]
[BlackElo "2121"]
[Annotator "NA"]
[PlyCount "114"]
[EventDate "2022.02.12"]
[EventType "swiss"]
[EventCountry "MEX"]
[SourceTitle "playchess.com"]
[Source "ChessBase"]
[SourceQuality "1"]
[TimeControl "5400+30"]

1. e4 {[%emt 0:00:14]} e5 {[%emt 0:00:34]} 2. Nf3 {[%emt 0:00:24]} Nc6 {[%emt 0:00:27]} 3. Bc4 {[%emt 0:01:08]} Bc5 {[%emt 0:01:23]} 4. c3 {[%emt 0:00:37]} Qe7 {[%emt 0:00:24]} 5. O-O {[%emt 0:04:14]} d6 {[%emt 0:01:20]} 6. d4 {[%emt 0:01:50]} Bb6 {[%emt 0:00:20]} 7. Bg5 {[%emt 0:02:40]} Nf6 {[%emt 0:00:27]} 8. d5 {[%emt 0:01:01]} Nb8 {[%emt 0:01:50]} 9. Qd3 {[%emt 0:02:03]} Nbd7 {[%emt 0:00:31]} 10. Nbd2 {[%emt 0:01:41]} h6 {[%emt 0:00:18]} 11. Be3 {[%emt 0:00:32]} O-O {[%emt 0:02:04]} 12. Nh4 {[%emt 0:06:14]} Nc5 {[%emt 0:04:45]} 13. Bxc5 {[%emt 0:02:48]} Bxc5 {[%emt 0:01:20]} 14. b4 {[%emt 0:03:58]} Bb6 {[%emt 0:00:17]} 15. Bb3 {[%emt 0:03:08]} Nxd5 {[%emt 0:01:04]} 16. g3 {[%emt 0:09:59]} Nf4 {[%emt 0:00:36]} 17. gxf4 {[%emt 0:00:05]} Qxh4 {[%emt 0:00:12]} 18. f5 {[%emt 0:00:04]} Kh8 {[%emt 0:00:26]} 19. Nf3 {[%emt 0:01:08]} Qf4 {[%emt 0:00:18]} 20. Ne1 {[%emt 0:03:19]} g6 {[%emt 0:01:06]} 21. Ng2 {[%emt 0:00:28]} Qg4 {[%emt 0:01:15]} 22. Qd2 {[%emt 0:06:02]} Kh7 {[%emt 0:00:44]} 23. fxg6+ {[%emt 0:03:23]} fxg6 {[%emt 0:00:19]} 24. Rae1 {[%emt 0:02:04]} Bd7 {[%emt 0:00:55]} 25. a4 {[%emt 0:00:42]} a5 {[%emt 0:00:22]} 26. b5 {[%emt 0:00:04]} Rf6 {[%emt 0:01:43]} 27. Bd1 {[%emt 0:01:40]} Qh3 {[%emt 0:02:58]} 28. Ne3 {[%emt 0:03:47]} Raf8 {[%emt 0:00:43]} 29. f3 {[%emt 0:00:50]} Qh4 {[%emt 0:04:49]} 30. Kh1 {[%emt 0:01:38]} Bh3 {[%emt 0:01:08]} 31. Nd5 {[%emt 0:03:58]} R6f7 {[%emt 0:02:06]} 32. Nxb6 {[%emt 0:00:08]} Bxf1 {[%emt 0:00:17]} 33. Rxf1 {[%emt 0:00:05]} cxb6 {[%emt 0:00:23]} 34. Qe3 {[%emt 0:04:29]} Qd8 {[%emt 0:00:34]} 35. c4 {[%emt 0:00:47]} Qc7 {[%emt 0:00:17]} 36. Be2 {[%emt 0:00:14]} Qc5 {[%emt 0:00:13]} 37. Qxc5 {[%emt 0:00:18]} bxc5 {[%emt 0:00:46]} 38. Kg2 {[%emt 0:02:46]} b6 {[%emt 0:01:39]} 39. Rd1 {[%emt 0:01:00]} Rd8 {[%emt 0:01:12]} 40. Kg3 {[%emt 0:01:10]} Kg7 {[%emt 0:00:11]} 41. Rd5 {[%emt 0:00:50]} Kf8 {[%emt 0:00:08]} 42. Rd1 {[%emt 0:00:29]} Ke7 {[%emt 0:00:15]} 43. h3 {[%emt 0:02:16]} Rf4 {[%emt 0:00:13]} 44. Rd2 {[%emt 0:03:05]} Rdf8 {[%emt 0:00:08]} 45. Rd1 {[%emt 0:00:22]} R8f6 {[%emt 0:00:07]} 46. Rd3 {[%emt 0:00:27]} g5 {[%emt 0:00:16]} 47. Rc3 {[%emt 0:01:03]} h5 {[%emt 0:00:14]} 48. Re3 {[%emt 0:00:05]} Kf7 {[%emt 0:00:21]} 49. Kg2 {[%emt 0:12:33]} Kg6 {[%emt 0:02:01]} 50. Kg3 {[%emt 0:00:26]} Rf8 {[%emt 0:01:58]} 51. Rd3 {[%emt 0:00:32]} R8f6 52. Re3 Kh6 {[%emt 0:01:21]} 53. Kg2 {[%emt 0:04:17]} g4 {[%emt 0:10:05]} 54. hxg4 {[%emt 0:00:05]} hxg4 {[%emt 0:00:10]} 55. Kf2 {[%emt 0:01:29]} Kg6 {[%emt 0:00:59]} 56. Kg2 {[%emt 0:00:11]} Kg5 {[%emt 0:01:13]} 57. Kg3 {[%emt 0:00:10]} Rxf3+ {[%emt 0:00:45]} 0-1

[Event "VIII Iberoamericano Mexico 2022"]
[Site "Mexico City"]
[Date "2022.02.19"]
[Round "9.40"]
[White "Castellanos Hernandez, Emilio Au"]
[Black "Limon Olmos, Ivan Alonso"]
[Result "0-1"]
[ECO "D04"]
[WhiteElo "1939"]
[BlackElo "2106"]
[Annotator "NA"]
[PlyCount "89"]
[EventDate "2022.02.12"]
[EventType "swiss"]
[EventCountry "MEX"]
[SourceTitle "playchess.com"]
[Source "ChessBase"]
[SourceQuality "1"]
[TimeControl "5400+30"]

1. d4 {[%emt 0:17:06]} d5 {[%emt 0:02:24]} 2. Nf3 {[%emt 0:00:37]} Nf6 {[%emt 0:02:40]} 3. e3 {[%emt 0:01:39]} c5 {[%emt 0:00:40]} 4. a3 {[%emt 0:05:30]} cxd4 {[%emt 0:03:34]} 5. exd4 {[%emt 0:00:14]} Nc6 {[%emt 0:00:53]} 6. c3 {[%emt 0:03:18]} Bg4 {[%emt 0:01:21]} 7. Qb3 {[%emt 0:00:46]} Qc7 {[%emt 0:03:28]} 8. Be2 {[%emt 0:01:24]} Bxf3 {[%emt 0:03:40]} 9. Bxf3 {[%emt 0:02:42]} Nxd4 {[%emt 0:00:52]} 10. Qa4+ {[%emt 0:06:25]} Nc6 {[%emt 0:00:09]} 11. O-O {[%emt 0:00:48]} e6 {[%emt 0:03:17]} 12. c4 {[%emt 0:01:01]} dxc4 {[%emt 0:06:50]} 13. Bf4 {[%emt 0:02:30]} Bd6 {[%emt 0:02:06]} 14. Bxd6 {[%emt 0:00:33]} Qxd6 {[%emt 0:00:02]} 15. Rd1 {[%emt 0:00:21]} Qc5 {[%emt 0:02:31]} 16. Bxc6+ {[%emt 0:00:18]} Qxc6 {[%emt 0:02:28]} 17. Qxc6+ {[%emt 0:00:08]} bxc6 {[%emt 0:00:05]} 18. Nd2 {[%emt 0:05:20]} c3 {[%emt 0:07:53]} 19. bxc3 {[%emt 0:00:01]} O-O-O {[%emt 0:01:23]} 20. Nf3 {[%emt 0:02:13]} Rxd1+ {[%emt 0:19:37]} 21. Rxd1 {[%emt 0:00:01]} Ne4 {[%emt 0:09:21]} 22. Ne5 {[%emt 0:04:15]} Nxc3 {[%emt 0:03:16]} 23. Rd3 {[%emt 0:01:11]} Rd8 {[%emt 0:02:12]} 24. Rxd8+ {[%emt 0:01:43]} Kxd8 {[%emt 0:02:08]} 25. Nxc6+ {[%emt 0:00:46]} Kc7 {[%emt 0:00:16]} 26. Nb4 {[%emt 0:00:34]} a5 {[%emt 0:05:34]} 27. Nc2 {[%emt 0:02:04]} Kb6 {[%emt 0:00:30]} 28. Kf1 {[%emt 0:00:01]} Kb5 {[%emt 0:01:45]} 29. Ke1 {[%emt 0:00:14]} Ka4 {[%emt 0:00:07]} 30. f4 {[%emt 0:00:54]} Kb3 {[%emt 0:01:36]} 31. Kd2 {[%emt 0:00:20]} Nb1+ {[%emt 0:00:19]} 32. Kd3 {[%emt 0:00:01]} Nxa3 {[%emt 0:01:16]} 33. Nd4+ {[%emt 0:00:04]} Kb2 {[%emt 0:00:52]} 34. g4 {[%emt 0:00:08]} a4 {[%emt 0:00:39]} 35. f5 {[%emt 0:01:41]} exf5 {[%emt 0:02:01]} 36. gxf5 {[%emt 0:00:06]} Nb1 {[%emt 0:01:01]} 37. Nb5 {[%emt 0:01:02]} a3 {[%emt 0:00:27]} 38. Nxa3 {[%emt 0:00:41]} Nxa3 {[%emt 0:00:28]} 39. f6 {[%emt 0:00:54]} gxf6 {[%emt 0:02:54]} 40. Ke4 {[%emt 0:00:18]} Nb5 {[%emt 0:00:13]} 41. Kf5 {[%emt 0:00:16]} Nd6+ {[%emt 0:00:04]} 42. Kxf6 {[%emt 0:00:35]} Kc3 {[%emt 0:00:12]} 43. h4 {[%emt 0:00:39]} Kd4 {[%emt 0:00:04]} 44. h5 {[%emt 0:00:45]} Ke4 {[%emt 0:06:53]} 45. h6 {[%emt 0:00:01]} 0-1

[Event "VIII Iberoamericano Mexico 2022"]
[Site "Mexico City"]
[Date "2022.02.19"]
[Round "9.41"]
[White "Gutierrez Herrera, Jose Antonio"]
[Black "Mateos Lopez, Luis Javier"]
[Result "0-1"]
[ECO "B56"]
[WhiteElo "2059"]
[BlackElo "1910"]
[Annotator "NA"]
[PlyCount "66"]
[EventDate "2022.02.12"]
[EventType "swiss"]
[EventCountry "MEX"]
[SourceTitle "playchess.com"]
[Source "ChessBase"]
[SourceQuality "1"]
[TimeControl "5400+30"]

1. e4 c5 {[%emt 0:08:21]} 2. Nf3 {[%emt 0:03:53]} d6 {[%emt 0:00:18]} 3. d4 {[%emt 0:01:08]} cxd4 {[%emt 0:00:14]} 4. Nxd4 {[%emt 0:00:01]} Nf6 {[%emt 0:00:18]} 5. Nc3 {[%emt 0:00:08]} Nc6 {[%emt 0:00:15]} 6. Be3 {[%emt 0:00:23]} Ng4 {[%emt 0:01:34]} 7. Bg5 {[%emt 0:05:00]} Qb6 {[%emt 0:02:59]} 8. Be3 {[%emt 0:31:48]} Nxe3 {[%emt 0:04:10]} 9. fxe3 {[%emt 0:00:02]} e6 {[%emt 0:07:18]} 10. Qd2 {[%emt 0:00:35]} Be7 {[%emt 0:00:57]} 11. O-O-O {[%emt 0:11:57]} a6 {[%emt 0:07:08]} 12. Kb1 {[%emt 0:00:05]} O-O {[%emt 0:00:32]} 13. h4 {[%emt 0:00:10]} Bd7 {[%emt 0:05:27]} 14. g4 {[%emt 0:00:23]} Ne5 {[%emt 0:02:08]} 15. g5 {[%emt 0:00:29]} Rac8 {[%emt 0:05:12]} 16. Be2 {[%emt 0:00:47]} Qc7 {[%emt 0:04:13]} 17. Rdg1 {[%emt 0:01:01]} b5 {[%emt 0:00:38]} 18. Rg2 {[%emt 0:02:54]} b4 {[%emt 0:06:47]} 19. Nd1 {[%emt 0:00:12]} a5 {[%emt 0:02:54]} 20. h5 {[%emt 0:00:11]} Qb7 {[%emt 0:02:03]} 21. Nf2 {[%emt 0:01:49]} a4 {[%emt 0:01:04]} 22. g6 {[%emt 0:01:35]} fxg6 {[%emt 0:01:17]} 23. hxg6 {[%emt 0:01:39]} h6 {[%emt 0:06:39]} 24. Bd3 {[%emt 0:02:13]} Rf6 {[%emt 0:10:38]} 25. Ng4 {[%emt 0:00:19]} Nxg4 {[%emt 0:00:56]} 26. Rxg4 {[%emt 0:00:03]} e5 {[%emt 0:00:30]} 27. Rgh4 {[%emt 0:06:22]} exd4 {[%emt 0:00:11]} 28. Rxh6 {[%emt 0:00:09]} gxh6 {[%emt 0:07:14]} 29. Rxh6 {[%emt 0:00:01]} Bf8 {[%emt 0:01:00]} 30. Rh8+ {[%emt 0:00:33]} Kxh8 {[%emt 0:00:20]} 31. Qh2+ {[%emt 0:00:14]} Bh3 {[%emt 0:00:18]} 32. Qxh3+ {[%emt 0:00:22]} Kg8 {[%emt 0:00:03]} 33. Ba6 {[%emt 0:04:01]} Rxg6 {[%emt 0:01:04]} 0-1

[Event "VIII Iberoamericano Mexico 2022"]
[Site "Mexico City"]
[Date "2022.02.19"]
[Round "9.42"]
[White "Martinez de La Trinidad, Alexandra"]
[Black "Zarate Manjarrez, Alfredo"]
[Result "1-0"]
[ECO "A43"]
[WhiteElo "1843"]
[BlackElo "2026"]
[Annotator "NA"]
[PlyCount "97"]
[EventDate "2022.02.12"]
[EventType "swiss"]
[EventCountry "MEX"]
[SourceTitle "playchess.com"]
[Source "ChessBase"]
[SourceQuality "1"]
[TimeControl "5400+30"]

1. d4 {[%emt 0:00:03]} c5 {[%emt 0:00:15]} 2. d5 {[%emt 0:00:07]} d6 {[%emt 0:00:55]} 3. e4 {[%emt 1:31:50]} g6 {[%emt 0:00:23]} 4. a4 {[%emt 0:00:06]} Bg7 {[%emt 0:00:34]} 5. h3 {[%emt 0:00:06]} Nf6 {[%emt 0:04:37]} 6. Nc3 {[%emt 0:00:09]} O-O {[%emt 0:00:24]} 7. Nge2 {[%emt 0:00:05]} e6 {[%emt 0:11:49]} 8. Ng3 {[%emt 0:00:44]} exd5 {[%emt 0:01:06]} 9. exd5 {[%emt 0:00:17]} Re8+ {[%emt 0:00:48]} 10. Be2 {[%emt 0:00:07]} Na6 {[%emt 0:08:19]} 11. O-O {[%emt 0:00:24]} Nc7 {[%emt 0:00:22]} 12. Be3 {[%emt 0:00:13]} b6 {[%emt 0:04:36]} 13. Qd2 {[%emt 0:01:43]} Bb7 {[%emt 0:02:57]} 14. Bg5 {[%emt 0:01:09]} Qd7 {[%emt 0:00:48]} 15. Bf3 {[%emt 1:32:38]} a6 {[%emt 1:00:07]} 16. Rad1 {[%emt 0:01:01]} b5 {[%emt 0:00:26]} 17. Qf4 {[%emt 0:02:58]} b4 {[%emt 0:05:06]} 18. Bxf6 {[%emt 0:02:08]} bxc3 {[%emt 0:00:06]} 19. bxc3 {[%emt 0:00:11]} Bxf6 {[%emt 0:06:14]} 20. Qxf6 {[%emt 0:01:36]} Re5 {[%emt 0:00:06]} 21. c4 {[%emt 0:01:27]} Ne8 {[%emt 0:09:01]} 22. Qf4 {[%emt 0:03:14]} f5 {[%emt 0:00:06]} 23. Rb1 {[%emt 0:00:28]} Qc7 {[%emt 0:03:23]} 24. Rb3 {[%emt 0:00:50]} Rd8 {[%emt 0:22:31]} 25. Rfb1 {[%emt 0:00:08]} Bc8 {[%emt 0:00:04]} 26. Qd2 {[%emt 0:01:45]} Qe7 {[%emt 0:02:40]} 27. Bd1 {[%emt 0:08:45]} Nf6 {[%emt 0:01:52]} 28. Bf3 {[%emt 0:15:03]} Re8 {[%emt 0:00:10]} 29. Re3 {[%emt 0:03:35]} f4 {[%emt 0:00:40]} 30. Rxe5 {[%emt 0:00:08]} Qxe5 {[%emt 0:00:01]} 31. Ne2 {[%emt 0:01:54]} g5 {[%emt 0:00:05]} 32. Qc3 {[%emt 0:04:05]} Kg7 {[%emt 0:03:05]} 33. Qxe5 {[%emt 0:01:18]} dxe5 {[%emt 0:00:01]} 34. Nc3 {[%emt 0:00:20]} e4 {[%emt 0:00:02]} 35. Be2 {[%emt 0:00:26]} e3 {[%emt 0:00:57]} 36. f3 {[%emt 0:01:41]} Bf5 {[%emt 0:02:53]} 37. Bd3 {[%emt 0:00:18]} Kg6 {[%emt 0:00:02]} 38. Kf1 {[%emt 0:00:29]} e2+ {[%emt 0:04:08]} 39. Nxe2 {[%emt 0:50:44]} Re3 {[%emt 0:00:55]} 40. Rb3 {[%emt 0:00:18]} h5 {[%emt 0:00:49]} 41. Kf2 {[%emt 0:03:53]} Re7 {[%emt 0:03:51]} 42. h4 {[%emt 0:05:47]} Nd7 {[%emt 0:01:04]} 43. hxg5 {[%emt 0:00:19]} Kxg5 {[%emt 0:00:01]} 44. Bxf5 {[%emt 0:00:22]} Kxf5 {[%emt 0:00:01]} 45. Rb7 {[%emt 0:00:18]} h4 {[%emt 0:01:27]} 46. Nc3 {[%emt 0:03:56]} Re3 {[%emt 0:00:46]} 47. Ne4 {[%emt 0:00:12]} Ne5 {[%emt 0:00:07]} 48. d6 {[%emt 0:05:27]} Ra3 {[%emt 0:06:51]} 49. d7 {[%emt 0:01:14]} 1-0

[Event "VIII Iberoamericano Mexico 2022"]
[Site "Mexico City"]
[Date "2022.02.19"]
[Round "9.43"]
[White "Fernandez Rivero, Karla July"]
[Black "Hernandez Morales, Dillan"]
[Result "1/2-1/2"]
[ECO "A70"]
[WhiteElo "2025"]
[BlackElo "1846"]
[Annotator "NA"]
[PlyCount "75"]
[EventDate "2022.02.12"]
[EventType "swiss"]
[EventCountry "MEX"]
[SourceTitle "playchess.com"]
[Source "ChessBase"]
[SourceQuality "1"]
[TimeControl "5400+30"]

1. d4 {[%emt 0:00:11]} Nf6 {[%emt 0:00:21]} 2. c4 {[%emt 0:00:13]} e6 {[%emt 0:00:13]} 3. Nf3 {[%emt 0:00:25]} c5 {[%emt 0:00:37]} 4. d5 {[%emt 0:00:43]} exd5 {[%emt 0:00:39]} 5. cxd5 {[%emt 0:00:09]} d6 {[%emt 0:00:15]} 6. Nc3 {[%emt 0:00:42]} g6 {[%emt 0:00:22]} 7. e4 {[%emt 0:00:24]} Bg7 {[%emt 0:01:19]} 8. h3 {[%emt 0:00:49]} O-O {[%emt 0:00:39]} 9. Bd3 {[%emt 0:00:21]} b5 {[%emt 0:01:34]} 10. Nxb5 {[%emt 0:01:22]} Re8 {[%emt 0:00:32]} 11. O-O {[%emt 0:00:50]} Nxe4 {[%emt 0:00:42]} 12. Bxe4 {[%emt 0:02:18]} Rxe4 {[%emt 0:00:20]} 13. Nc3 {[%emt 0:00:16]} Re8 {[%emt 0:00:49]} 14. Bg5 {[%emt 0:01:03]} f6 {[%emt 0:02:22]} 15. Bf4 {[%emt 0:02:19]} Bf8 {[%emt 0:04:23]} 16. Re1 {[%emt 0:06:03]} Rxe1+ {[%emt 0:02:54]} 17. Qxe1 {[%emt 0:00:08]} Nd7 {[%emt 0:00:03]} 18. Bxd6 {[%emt 0:04:55]} Nb6 {[%emt 1:21:26]} 19. Bxf8 {[%emt 0:00:51]} Kxf8 {[%emt 0:00:00]} 20. Qe3 {[%emt 0:04:48]} Qe7 {[%emt 0:00:00]} 21. Qh6+ {[%emt 0:00:41]} Qg7 {[%emt 0:00:00]} 22. Qxg7+ {[%emt 0:02:11]} Kxg7 {[%emt 0:00:00]} 23. Re1 {[%emt 0:00:13]} Kf8 {[%emt 0:00:00]} 24. Ne4 {[%emt 0:05:42]} Nxd5 25. Nxc5 Rb8 {[%emt 0:00:00]} 26. b3 {[%emt 0:09:40]} Kf7 27. Nd4 {[%emt 0:56:43]} Ne7 {[%emt 0:00:00]} 28. a3 {[%emt 0:00:00]} Rb6 {[%emt 0:00:00]} 29. b4 {[%emt 0:00:00]} Nc6 {[%emt 0:00:00]} 30. Nc2 {[%emt 0:00:00]} a5 {[%emt 0:00:00]} 31. Ne3 {[%emt 0:00:00]} axb4 {[%emt 0:00:00]} 32. Nc4 {[%emt 0:00:00]} Rb8 {[%emt 0:00:00]} 33. Nd6+ {[%emt 0:00:00]} Kg7 {[%emt 0:00:00]} 34. axb4 {[%emt 0:00:00]} Bf5 {[%emt 0:00:00]} 35. b5 {[%emt 0:00:00]} Nd4 {[%emt 0:08:30]} 36. Re7+ {[%emt 0:00:00]} Kg8 {[%emt 0:00:30]} 37. Rc7 {[%emt 0:05:00]} Ne6 38. Rb7 {[%emt 0:00:00]} 1/2-1/2